[Event "*** Titled Tuesday Blitz AM"]
[Site "Chess.com"]
[Date "2020.01.07"]
[Round "1"]
[White "gui_borba"]
[Black "meoluoi91"]
[Result "1-0"]
[WhiteElo "2268"]
[BlackElo "2610"]
[TimeControl "180+2"]
[EndTime "9:07:41 PST"]
[Termination "gui_borba won on time"]

1. e4 {[%clk 0:02:59.2]} 1... c6 {[%clk 0:03:00.6]} 2. d4 {[%clk 0:02:57.3]}
2... d5 {[%clk 0:03:02]} 3. e5 {[%clk 0:02:57.8]} 3... g6 {[%clk 0:03:02.3]} 4.
f4 {[%clk 0:02:56.6]} 4... Nh6 {[%clk 0:03:02.5]} 5. Nc3 {[%clk 0:02:55.5]} 5...
Bg7 {[%clk 0:03:03.2]} 6. Be3 {[%clk 0:02:55.2]} 6... a5 {[%clk 0:02:56]} 7. Qd2
{[%clk 0:02:54.6]} 7... Ng4 {[%clk 0:02:43.5]} 8. O-O-O {[%clk 0:02:54.4]} 8...
a4 {[%clk 0:02:41.4]} 9. Be2 {[%clk 0:02:48.5]} 9... a3 {[%clk 0:02:35.8]} 10.
b3 {[%clk 0:02:48.4]} 10... Nxe3 {[%clk 0:02:28.9]} 11. Qxe3 {[%clk 0:02:49]}
11... Na6 {[%clk 0:02:30.3]} 12. g4 {[%clk 0:02:40.9]} 12... Nb4 {[%clk
0:02:20.8]} 13. Kb1 {[%clk 0:02:36.5]} 13... h5 {[%clk 0:02:18.4]} 14. f5 {[%clk
0:02:02.6]} 14... hxg4 {[%clk 0:02:13.8]} 15. Bxg4 {[%clk 0:01:15]} 15... gxf5
{[%clk 0:02:11.8]} 16. Bf3 {[%clk 0:01:04.8]} 16... Bh6 {[%clk 0:02:11.7]} 17.
Qf2 {[%clk 0:01:04.4]} 17... f4 {[%clk 0:02:11]} 18. Nge2 {[%clk 0:00:36.9]}
18... Bf5 {[%clk 0:01:33.9]} 19. Rd2 {[%clk 0:00:37.3]} 19... e6 {[%clk
0:01:23.9]} 20. Rg1 {[%clk 0:00:35.9]} 20... Qe7 {[%clk 0:01:12.2]} 21. Nc1
{[%clk 0:00:25.4]} 21... O-O-O {[%clk 0:01:08.4]} 22. Re2 {[%clk 0:00:26.2]}
22... Rdg8 {[%clk 0:00:50.7]} 23. Ree1 {[%clk 0:00:25.5]} 23... Bg5 {[%clk
0:00:22.7]} 24. Bd1 {[%clk 0:00:21.4]} 1-0

[Event "*** Titled Tuesday Blitz AM"]
[Site "Chess.com"]
[Date "2020.01.07"]
[Round "1"]
[White "DishonorOnYourCow"]
[Black "lestri"]
[Result "0-1"]
[WhiteElo "2204"]
[BlackElo "2610"]
[TimeControl "180+2"]
[EndTime "9:07:41 PST"]
[Termination "lestri won by resignation"]

1. d4 {[%clk 0:02:55.6]} 1... d6 {[%clk 0:03:00.3]} 2. c4 {[%clk 0:02:56.3]}
2... e5 {[%clk 0:03:00.6]} 3. d5 {[%clk 0:02:53.6]} 3... a5 {[%clk 0:03:00.5]}
4. Nc3 {[%clk 0:02:53.8]} 4... Na6 {[%clk 0:03:01.4]} 5. e4 {[%clk 0:02:54.3]}
5... Nf6 {[%clk 0:03:01.4]} 6. Bd3 {[%clk 0:02:50.3]} 6... c6 {[%clk 0:03:01.6]}
7. Nf3 {[%clk 0:02:48.8]} 7... Nc5 {[%clk 0:02:59]} 8. Bc2 {[%clk 0:02:47.8]}
8... cxd5 {[%clk 0:02:59.9]} 9. cxd5 {[%clk 0:02:46.7]} 9... Bd7 {[%clk
0:03:00.4]} 10. O-O {[%clk 0:02:43.9]} 10... b5 {[%clk 0:03:00.8]} 11. a3 {[%clk
0:02:18.2]} 11... Rc8 {[%clk 0:02:59.7]} 12. Be3 {[%clk 0:02:11.4]} 12... b4
{[%clk 0:02:52.4]} 13. axb4 {[%clk 0:02:09.2]} 13... axb4 {[%clk 0:02:54.3]} 14.
Na4 {[%clk 0:02:08.3]} 14... Nxa4 {[%clk 0:02:42.2]} 15. Bxa4 {[%clk 0:02:09.2]}
15... Nxe4 {[%clk 0:02:40.2]} 16. Bxd7+ {[%clk 0:02:03.8]} 16... Qxd7 {[%clk
0:02:42.1]} 17. Ra7 {[%clk 0:02:04.8]} 17... Qb5 {[%clk 0:02:38]} 18. Re1 {[%clk
0:01:58.8]} 18... Be7 {[%clk 0:02:35.8]} 19. Bc1 {[%clk 0:01:43.6]} 19... f5
{[%clk 0:02:19.5]} 20. h3 {[%clk 0:00:27.6]} 20... Rf8 {[%clk 0:01:54.7]} 21.
Nh2 {[%clk 0:00:23.1]} 21... Rf7 {[%clk 0:01:49.1]} 22. f3 {[%clk 0:00:22.2]}
22... Nc5 {[%clk 0:01:34.6]} 23. Be3 {[%clk 0:00:16]} 23... Bg5 {[%clk 0:01:31]}
24. Rxf7 {[%clk 0:00:15.9]} 24... Bxe3+ {[%clk 0:01:31]} 25. Rxe3 {[%clk
0:00:17.8]} 25... Kxf7 {[%clk 0:01:32]} 26. f4 {[%clk 0:00:18.6]} 26... Ne4
{[%clk 0:01:23.6]} 27. Qh5+ {[%clk 0:00:18.8]} 27... Kg8 {[%clk 0:01:24.2]} 28.
Nf1 {[%clk 0:00:10.7]} 28... g6 {[%clk 0:01:18.5]} 29. Qe2 {[%clk 0:00:10.4]}
29... Qxe2 {[%clk 0:01:18.1]} 30. Rxe2 {[%clk 0:00:11.6]} 30... exf4 {[%clk
0:01:19.2]} 31. Re1 {[%clk 0:00:09.6]} 31... Rc2 {[%clk 0:01:18.9]} 32. Nh2
{[%clk 0:00:07.7]} 32... Rxb2 {[%clk 0:01:10.1]} 33. Nf3 {[%clk 0:00:08.4]}
33... Kf7 {[%clk 0:01:09.7]} 34. Nd4 {[%clk 0:00:08.3]} 34... Kf6 {[%clk
0:01:09.5]} 35. Rc1 {[%clk 0:00:07.8]} 35... Rd2 {[%clk 0:01:08.8]} 36. Nc6
{[%clk 0:00:07]} 36... b3 {[%clk 0:01:09.1]} 37. Rb1 {[%clk 0:00:06.4]} 37... b2
{[%clk 0:01:09.8]} 38. Na5 {[%clk 0:00:05.5]} 38... Nc3 {[%clk 0:01:09.6]} 0-1

[Event "*** Titled Tuesday Blitz AM"]
[Site "Chess.com"]
[Date "2020.01.07"]
[Round "1"]
[White "manitodeplomo"]
[Black "MattyDPerrine"]
[Result "0-1"]
[WhiteElo "2673"]
[BlackElo "2338"]
[TimeControl "180+2"]
[EndTime "9:07:46 PST"]
[Termination "MattyDPerrine won by resignation"]

1. d4 {[%clk 0:02:54.6]} 1... Nf6 {[%clk 0:03:00.5]} 2. c4 {[%clk 0:02:52.2]}
2... c5 {[%clk 0:03:02]} 3. d5 {[%clk 0:02:52.3]} 3... b5 {[%clk 0:03:03.2]} 4.
Qc2 {[%clk 0:02:51.3]} 4... bxc4 {[%clk 0:02:49.3]} 5. e4 {[%clk 0:02:51.7]}
5... e6 {[%clk 0:02:49.6]} 6. Nc3 {[%clk 0:02:50.9]} 6... Be7 {[%clk 0:02:36.8]}
7. Bxc4 {[%clk 0:02:47.1]} 7... O-O {[%clk 0:02:37.3]} 8. Nf3 {[%clk 0:02:30.7]}
8... exd5 {[%clk 0:02:30.5]} 9. Nxd5 {[%clk 0:02:29.5]} 9... Nxd5 {[%clk
0:02:27.1]} 10. Bxd5 {[%clk 0:02:29.3]} 10... Nc6 {[%clk 0:02:28.1]} 11. a3
{[%clk 0:02:16.3]} 11... Ba6 {[%clk 0:02:24]} 12. Bd2 {[%clk 0:02:13.3]} 12...
Rc8 {[%clk 0:01:54.9]} 13. Bc3 {[%clk 0:01:39.6]} 13... Nd4 {[%clk 0:01:25.5]}
14. Qd1 {[%clk 0:01:14.7]} 14... Be2 {[%clk 0:01:00.1]} 15. Qd2 {[%clk
0:01:13.8]} 15... Bxf3 {[%clk 0:00:29]} 16. Bxd4 {[%clk 0:01:14.1]} 16... Bxg2
{[%clk 0:00:26.1]} 17. Bxg7 {[%clk 0:01:13.4]} 17... Bxh1 {[%clk 0:00:21.5]} 18.
Bxf8 {[%clk 0:00:46.3]} 18... Bg5 {[%clk 0:00:22.7]} 19. Qc3 {[%clk 0:00:42.6]}
19... Qxf8 {[%clk 0:00:20.4]} 20. Ke2 {[%clk 0:00:38.6]} 20... Bxe4 {[%clk
0:00:18]} 21. Rg1 {[%clk 0:00:34.3]} 21... Qe7 {[%clk 0:00:14.7]} 22. Bxe4
{[%clk 0:00:17.3]} 22... Qxe4+ {[%clk 0:00:15.3]} 23. Qe3 {[%clk 0:00:18.8]}
23... Qc4+ {[%clk 0:00:13.3]} 24. Kf3 {[%clk 0:00:19]} 24... f6 {[%clk
0:00:14.1]} 25. Rg4 {[%clk 0:00:12.8]} 25... Qd5+ {[%clk 0:00:14.6]} 26. Kg3
{[%clk 0:00:13.3]} 26... Kh8 {[%clk 0:00:16.1]} 27. f4 {[%clk 0:00:13.5]} 27...
Bh6 {[%clk 0:00:17.5]} 28. Qe7 {[%clk 0:00:14.1]} 28... Qe6 {[%clk 0:00:17.2]}
0-1

[Event "*** Titled Tuesday Blitz AM"]
[Site "Chess.com"]
[Date "2020.01.07"]
[Round "1"]
[White "garfield_pg"]
[Black "Rikikits"]
[Result "0-1"]
[WhiteElo "2333"]
[BlackElo "2706"]
[TimeControl "180+2"]
[EndTime "9:07:51 PST"]
[Termination "Rikikits won by resignation"]

1. e4 {[%clk 0:02:58.6]} 1... g6 {[%clk 0:03:01.9]} 2. d4 {[%clk 0:02:58.9]}
2... Bg7 {[%clk 0:03:03.8]} 3. Nc3 {[%clk 0:02:50.5]} 3... d6 {[%clk 0:03:05.1]}
4. Bg5 {[%clk 0:02:48.5]} 4... a6 {[%clk 0:03:05.9]} 5. a4 {[%clk 0:02:48.7]}
5... b6 {[%clk 0:03:06.4]} 6. Qd2 {[%clk 0:02:48.9]} 6... Bb7 {[%clk 0:03:07.5]}
7. f4 {[%clk 0:02:50.1]} 7... Nd7 {[%clk 0:03:08.4]} 8. Nf3 {[%clk 0:02:51.1]}
8... h6 {[%clk 0:03:08.3]} 9. Bh4 {[%clk 0:02:51.7]} 9... Qc8 {[%clk 0:02:55.8]}
10. Bc4 {[%clk 0:02:18.5]} 10... e6 {[%clk 0:02:52.8]} 11. O-O {[%clk
0:02:15.7]} 11... Ngf6 {[%clk 0:02:46.5]} 12. f5 {[%clk 0:02:04.8]} 12... exf5
{[%clk 0:02:44.6]} 13. exf5 {[%clk 0:02:02.1]} 13... g5 {[%clk 0:02:45.6]} 14.
Bxg5 {[%clk 0:01:36.8]} 14... hxg5 {[%clk 0:02:45.7]} 15. Bxf7+ {[%clk
0:01:35.8]} 15... Kxf7 {[%clk 0:02:45.4]} 16. Nxg5+ {[%clk 0:01:37.1]} 16... Kg8
{[%clk 0:02:46.7]} 17. Ne6 {[%clk 0:01:30.1]} 17... Nf8 {[%clk 0:02:39.1]} 18.
d5 {[%clk 0:01:15.3]} 18... Qd7 {[%clk 0:02:35.8]} 19. Rf3 {[%clk 0:01:08.1]}
19... Nxe6 {[%clk 0:02:31.4]} 20. fxe6 {[%clk 0:01:01.4]} 20... Qe7 {[%clk
0:02:30.4]} 21. Raf1 {[%clk 0:00:55.1]} 21... Rf8 {[%clk 0:02:30.5]} 22. Rg3
{[%clk 0:00:30.9]} 22... Rh7 {[%clk 0:02:30.4]} 23. Qd3 {[%clk 0:00:28.8]} 23...
Kh8 {[%clk 0:02:27.9]} 24. Ne4 {[%clk 0:00:27.5]} 24... Nxe4 {[%clk 0:02:25.1]}
25. Rxf8+ {[%clk 0:00:28.4]} 25... Qxf8 {[%clk 0:02:25.5]} 26. Qxe4 {[%clk
0:00:30]} 26... Be5 {[%clk 0:02:23.4]} 27. Rf3 {[%clk 0:00:22.1]} 27... Qh6
{[%clk 0:02:18.3]} 28. h3 {[%clk 0:00:22.6]} 28... Kg8 {[%clk 0:01:23.1]} 29. c4
{[%clk 0:00:21.5]} 29... Rg7 {[%clk 0:01:22.4]} 30. Qf5 {[%clk 0:00:16.5]} 30...
Qc1+ {[%clk 0:01:19.4]} 31. Rf1 {[%clk 0:00:17.4]} 31... Qe3+ {[%clk 0:01:14.8]}
32. Rf2 {[%clk 0:00:09.7]} 32... Bd4 {[%clk 0:00:50.8]} 33. Qf8+ {[%clk
0:00:08.8]} 33... Kh7 {[%clk 0:00:51.9]} 34. Qf5+ {[%clk 0:00:09.3]} 34... Kh6
{[%clk 0:00:53.4]} 35. Qf4+ {[%clk 0:00:03.6]} 0-1

[Event "*** Titled Tuesday Blitz AM"]
[Site "Chess.com"]
[Date "2020.01.07"]
[Round "1"]
[White "julinha97"]
[Black "Anna_ChessMate"]
[Result "1-0"]
[WhiteElo "2226"]
[BlackElo "2583"]
[TimeControl "180+2"]
[EndTime "9:08:01 PST"]
[Termination "julinha97 won by resignation"]

1. e4 {[%clk 0:02:59.5]} 1... e5 {[%clk 0:02:59.5]} 2. Nf3 {[%clk 0:03:00.1]}
2... Nc6 {[%clk 0:02:59.2]} 3. Bb5 {[%clk 0:03:00.7]} 3... a6 {[%clk 0:02:59]}
4. Ba4 {[%clk 0:03:01.4]} 4... Nf6 {[%clk 0:02:58.3]} 5. O-O {[%clk 0:03:01.8]}
5... Nxe4 {[%clk 0:02:59.1]} 6. d4 {[%clk 0:02:55.5]} 6... b5 {[%clk 0:02:59]}
7. Bb3 {[%clk 0:02:56.3]} 7... d5 {[%clk 0:03:00.1]} 8. dxe5 {[%clk 0:02:57.2]}
8... Be6 {[%clk 0:02:59.9]} 9. Qe2 {[%clk 0:02:55.6]} 9... Be7 {[%clk
0:02:58.9]} 10. Rd1 {[%clk 0:02:54.7]} 10... Nc5 {[%clk 0:02:52.9]} 11. c4
{[%clk 0:02:51.4]} 11... Nxb3 {[%clk 0:02:43.4]} 12. axb3 {[%clk 0:02:53.3]}
12... b4 {[%clk 0:02:44.4]} 13. cxd5 {[%clk 0:02:22.8]} 13... Bxd5 {[%clk
0:02:44.8]} 14. Rxa6 {[%clk 0:02:19.3]} 14... Rxa6 {[%clk 0:02:19]} 15. Qxa6
{[%clk 0:02:18.5]} 15... Nb8 {[%clk 0:02:06.5]} 16. Qe2 {[%clk 0:01:46.1]} 16...
O-O {[%clk 0:02:03.3]} 17. Nbd2 {[%clk 0:01:44.2]} 17... c6 {[%clk 0:02:02.4]}
18. Nc4 {[%clk 0:01:43.7]} 18... Nd7 {[%clk 0:01:52.2]} 19. Bf4 {[%clk
0:01:23.8]} 19... Qa8 {[%clk 0:01:40.7]} 20. Ne3 {[%clk 0:01:16.5]} 20... Nc5
{[%clk 0:01:27.6]} 21. Nxd5 {[%clk 0:01:15.7]} 21... cxd5 {[%clk 0:01:29.5]} 22.
Nd4 {[%clk 0:01:14.3]} 22... Qa2 {[%clk 0:01:26.9]} 23. Nc6 {[%clk 0:00:42.7]}
23... Bd8 {[%clk 0:01:19]} 24. Nxb4 {[%clk 0:00:41.7]} 24... Qxb3 {[%clk
0:01:18.6]} 25. Nxd5 {[%clk 0:00:42.9]} 25... Ne6 {[%clk 0:01:18.1]} 26. Bg3
{[%clk 0:00:41.2]} 26... h6 {[%clk 0:01:18.6]} 27. h3 {[%clk 0:00:38.9]} 27...
Bg5 {[%clk 0:01:19.3]} 28. Rd3 {[%clk 0:00:22]} 28... Qb5 {[%clk 0:01:14.8]} 29.
f4 {[%clk 0:00:19.7]} 29... Nd4 {[%clk 0:01:07.3]} 30. Qe4 {[%clk 0:00:14.1]}
30... Bd8 {[%clk 0:00:58.2]} 31. Qxd4 {[%clk 0:00:11.7]} 31... Ba5 {[%clk
0:00:56.5]} 32. Kh2 {[%clk 0:00:12]} 32... Rb8 {[%clk 0:00:51.8]} 33. Ne7+
{[%clk 0:00:12]} 33... Kh8 {[%clk 0:00:48.5]} 34. Qd5 {[%clk 0:00:11.1]} 34...
Qe8 {[%clk 0:00:42.9]} 35. Nc6 {[%clk 0:00:11.3]} 1-0

[Event "*** Titled Tuesday Blitz AM"]
[Site "Chess.com"]
[Date "2020.01.07"]
[Round "1"]
[White "Anton_Demchenko"]
[Black "ShahMatKanal"]
[Result "1-0"]
[WhiteElo "3015"]
[BlackElo "2522"]
[TimeControl "180+2"]
[EndTime "9:08:07 PST"]
[Termination "Anton_Demchenko won by resignation"]

1. d4 {[%clk 0:03:00.3]} 1... Nf6 {[%clk 0:02:59.2]} 2. Nf3 {[%clk 0:02:57.3]}
2... d5 {[%clk 0:02:59.4]} 3. Bf4 {[%clk 0:02:57.6]} 3... c5 {[%clk 0:02:53]} 4.
e3 {[%clk 0:02:58.3]} 4... Nc6 {[%clk 0:02:36]} 5. Nbd2 {[%clk 0:02:58.5]} 5...
e6 {[%clk 0:02:32.1]} 6. c3 {[%clk 0:02:55.4]} 6... Bd6 {[%clk 0:02:27.6]} 7.
Bg3 {[%clk 0:02:56.3]} 7... cxd4 {[%clk 0:02:10]} 8. exd4 {[%clk 0:02:56.7]}
8... Qc7 {[%clk 0:02:07.7]} 9. Bb5 {[%clk 0:02:50.3]} 9... O-O {[%clk 0:02:07]}
10. Qe2 {[%clk 0:02:43.9]} 10... a6 {[%clk 0:02:03.1]} 11. Bd3 {[%clk 0:02:45]}
11... Ne7 {[%clk 0:01:54]} 12. Bxd6 {[%clk 0:02:42.6]} 12... Qxd6 {[%clk
0:01:54.6]} 13. Ne5 {[%clk 0:02:44.2]} 13... Ng6 {[%clk 0:01:47.7]} 14. Bxg6
{[%clk 0:02:43.1]} 14... hxg6 {[%clk 0:01:47.5]} 15. O-O {[%clk 0:02:45]} 15...
Nd7 {[%clk 0:01:42.4]} 16. f4 {[%clk 0:02:45.2]} 16... b5 {[%clk 0:01:23.4]} 17.
a3 {[%clk 0:02:46]} 17... Bb7 {[%clk 0:01:23.9]} 18. Ndf3 {[%clk 0:02:43.2]}
18... Rfe8 {[%clk 0:01:11.6]} 19. Nxd7 {[%clk 0:02:38]} 19... Qxd7 {[%clk
0:01:11.9]} 20. Ne5 {[%clk 0:02:39.7]} 20... Qc7 {[%clk 0:00:50.8]} 21. Rf3
{[%clk 0:02:37.1]} 21... Kf8 {[%clk 0:00:48.7]} 22. Rh3 {[%clk 0:02:35.2]} 22...
Ke7 {[%clk 0:00:48.9]} 23. Rh7 {[%clk 0:02:35.7]} 23... Rg8 {[%clk 0:00:44.4]}
24. Re1 {[%clk 0:02:33.1]} 24... Qd6 {[%clk 0:00:36.5]} 25. Qg4 {[%clk
0:02:30.1]} 25... Raf8 {[%clk 0:00:32.2]} 26. Qh4+ {[%clk 0:02:26.6]} 26... Ke8
{[%clk 0:00:33.2]} 27. Nd3 {[%clk 0:02:23.2]} 27... Qe7 {[%clk 0:00:30.8]} 28.
Qh3 {[%clk 0:02:19.6]} 28... Bc8 {[%clk 0:00:29.7]} 29. Nc5 {[%clk 0:02:14.2]}
29... Qf6 {[%clk 0:00:28.4]} 30. Qf3 {[%clk 0:02:09.6]} 30... Qd8 {[%clk
0:00:26.7]} 31. f5 {[%clk 0:02:01]} 31... gxf5 {[%clk 0:00:27.7]} 32. Qxf5
{[%clk 0:02:01.9]} 32... Qf6 {[%clk 0:00:27.4]} 33. Qh5 {[%clk 0:01:56.8]} 33...
g5 {[%clk 0:00:20]} 34. Rh6 {[%clk 0:01:53.4]} 34... Rg6 {[%clk 0:00:13.3]} 35.
Rxg6 {[%clk 0:01:51.7]} 35... fxg6 {[%clk 0:00:14.5]} 36. Qe2 {[%clk 0:01:52.8]}
36... Kd8 {[%clk 0:00:12.4]} 37. Nd3 {[%clk 0:01:51.1]} 37... Kc7 {[%clk
0:00:10.5]} 38. Qe5+ {[%clk 0:01:47.9]} 38... Qxe5 {[%clk 0:00:11.4]} 39. Rxe5
{[%clk 0:01:49.8]} 39... Rf5 {[%clk 0:00:11.2]} 40. Re3 {[%clk 0:01:40.1]} 40...
g4 {[%clk 0:00:08]} 41. Ne5 {[%clk 0:01:39]} 41... Rg5 {[%clk 0:00:05.8]} 42.
Rg3 {[%clk 0:01:37.2]} 42... a5 {[%clk 0:00:05.5]} 43. b4 {[%clk 0:01:35.9]}
43... a4 {[%clk 0:00:03.8]} 44. Rxg4 {[%clk 0:01:34.5]} 44... Rxg4 {[%clk
0:00:03.1]} 45. Nxg4 {[%clk 0:01:36.4]} 45... Bd7 {[%clk 0:00:04.1]} 46. Ne5
{[%clk 0:01:36]} 46... Be8 {[%clk 0:00:05.4]} 47. Kf2 {[%clk 0:01:37.6]} 47...
Kd6 {[%clk 0:00:06]} 48. Kg3 {[%clk 0:01:39.2]} 48... Ke7 {[%clk 0:00:07.5]} 49.
Kf4 {[%clk 0:01:40.1]} 49... Kf6 {[%clk 0:00:08.9]} 50. Ng4+ {[%clk 0:01:41.6]}
50... Ke7 {[%clk 0:00:09.5]} 51. Kg5 {[%clk 0:01:43.2]} 51... Kf8 {[%clk
0:00:09.2]} 52. Kf6 {[%clk 0:01:44]} 1-0

[Event "*** Titled Tuesday Blitz AM"]
[Site "Chess.com"]
[Date "2020.01.07"]
[Round "1"]
[White "vinniethepooh"]
[Black "levallem"]
[Result "1-0"]
[WhiteElo "2596"]
[BlackElo "2181"]
[TimeControl "180+2"]
[EndTime "9:08:07 PST"]
[Termination "vinniethepooh won by resignation"]

1. d4 {[%clk 0:03:00.8]} 1... d5 {[%clk 0:03:00.2]} 2. c4 {[%clk 0:03:01.5]}
2... e6 {[%clk 0:03:00.6]} 3. Nc3 {[%clk 0:03:02.5]} 3... c6 {[%clk 0:03:01.9]}
4. Nf3 {[%clk 0:03:02.1]} 4... Nf6 {[%clk 0:03:03.1]} 5. g3 {[%clk 0:03:03.2]}
5... Nbd7 {[%clk 0:03:04.2]} 6. Bg2 {[%clk 0:03:04.2]} 6... b6 {[%clk
0:03:03.8]} 7. O-O {[%clk 0:03:03.2]} 7... Bb7 {[%clk 0:03:05]} 8. Qd3 {[%clk
0:03:01.2]} 8... Be7 {[%clk 0:03:04.2]} 9. e4 {[%clk 0:03:01.2]} 9... dxe4
{[%clk 0:03:04.5]} 10. Nxe4 {[%clk 0:03:02.9]} 10... c5 {[%clk 0:03:01.6]} 11.
Nxf6+ {[%clk 0:02:54.8]} 11... Nxf6 {[%clk 0:03:01.9]} 12. Rd1 {[%clk
0:02:36.6]} 12... cxd4 {[%clk 0:02:59.6]} 13. Nxd4 {[%clk 0:02:33]} 13... Bxg2
{[%clk 0:02:59.9]} 14. Kxg2 {[%clk 0:02:34.6]} 14... O-O {[%clk 0:03:00.7]} 15.
Nc6 {[%clk 0:02:29.8]} 15... Qc7 {[%clk 0:02:56.4]} 16. Nxe7+ {[%clk 0:02:29.8]}
16... Qxe7 {[%clk 0:02:58.3]} 17. Qf3 {[%clk 0:02:18.4]} 17... Rfd8 {[%clk
0:02:57.4]} 18. b3 {[%clk 0:01:37.5]} 18... Rxd1 {[%clk 0:02:53.1]} 19. Ba3
{[%clk 0:01:34.3]} 19... Qe8 {[%clk 0:02:43.6]} 20. Rxd1 {[%clk 0:01:33.9]}
20... Rd8 {[%clk 0:02:32.7]} 21. Bb2 {[%clk 0:01:23.1]} 21... Rxd1 {[%clk
0:02:31.3]} 22. Qxd1 {[%clk 0:01:25]} 22... Qc6+ {[%clk 0:02:29.3]} 23. f3
{[%clk 0:01:23.8]} 23... Nd7 {[%clk 0:02:27.4]} 24. Qd4 {[%clk 0:01:12.6]} 24...
f6 {[%clk 0:02:27.2]} 25. Ba3 {[%clk 0:00:59.7]} 25... Ne5 {[%clk 0:02:14.5]}
26. Qe3 {[%clk 0:00:59]} 26... Kf7 {[%clk 0:02:13.4]} 27. Bb2 {[%clk 0:00:59.5]}
27... Nd7 {[%clk 0:02:11]} 28. Qd2 {[%clk 0:00:59.1]} 28... h6 {[%clk
0:01:57.2]} 29. Kf2 {[%clk 0:01:00]} 29... a5 {[%clk 0:01:45.4]} 30. Bd4 {[%clk
0:01:00.7]} 30... e5 {[%clk 0:01:45.6]} 31. Be3 {[%clk 0:01:01.7]} 31... Ke6
{[%clk 0:01:46.6]} 32. Qd3 {[%clk 0:01:01.4]} 32... Nc5 {[%clk 0:01:34.2]} 33.
Qh7 {[%clk 0:00:52.1]} 33... Qd7 {[%clk 0:01:24.7]} 34. Qg8+ {[%clk 0:00:51.5]}
34... Kf5 {[%clk 0:01:20.1]} 35. g4+ {[%clk 0:00:38.5]} 35... Kg6 {[%clk
0:01:20.1]} 36. h4 {[%clk 0:00:40.1]} 36... Nd3+ {[%clk 0:01:09.5]} 37. Ke2
{[%clk 0:00:29.5]} 37... Nf4+ {[%clk 0:01:10.3]} 38. Bxf4 {[%clk 0:00:30.2]}
38... exf4 {[%clk 0:01:12.2]} 39. h5+ {[%clk 0:00:22.1]} 39... Kg5 {[%clk
0:01:12.7]} 40. Qd5+ {[%clk 0:00:23.6]} 40... Qxd5 {[%clk 0:01:13.8]} 41. cxd5
{[%clk 0:00:25.5]} 41... f5 {[%clk 0:01:15.2]} 42. d6 {[%clk 0:00:22.6]} 42...
Kf6 {[%clk 0:01:11.5]} 43. gxf5 {[%clk 0:00:21.9]} 43... Kf7 {[%clk 0:01:03.5]}
44. Kd3 {[%clk 0:00:22.8]} 44... Ke8 {[%clk 0:01:05.1]} 45. Ke4 {[%clk
0:00:23.9]} 45... Kd7 {[%clk 0:01:07]} 46. Ke5 {[%clk 0:00:24.7]} 46... b5
{[%clk 0:01:07.8]} 47. a3 {[%clk 0:00:23.9]} 47... b4 {[%clk 0:01:08.1]} 48. a4
{[%clk 0:00:24.8]} 1-0

[Event "*** Titled Tuesday Blitz AM"]
[Site "Chess.com"]
[Date "2020.01.07"]
[Round "1"]
[White "Alex_Molchanov"]
[Black "Jabberwockiez"]
[Result "0-1"]
[WhiteElo "2597"]
[BlackElo "2261"]
[TimeControl "180+2"]
[EndTime "9:08:08 PST"]
[Termination "Jabberwockiez won by resignation"]

1. d4 {[%clk 0:03:00.1]} 1... Nf6 {[%clk 0:03:00.3]} 2. Nf3 {[%clk 0:03:00.9]}
2... d5 {[%clk 0:02:59.8]} 3. g3 {[%clk 0:02:58.8]} 3... Bg4 {[%clk 0:02:55.9]}
4. Bg2 {[%clk 0:02:59.4]} 4... Nbd7 {[%clk 0:02:55]} 5. c4 {[%clk 0:02:48.5]}
5... e6 {[%clk 0:02:55.2]} 6. Nbd2 {[%clk 0:02:34.2]} 6... Be7 {[%clk
0:02:53.8]} 7. O-O {[%clk 0:02:34.5]} 7... O-O {[%clk 0:02:54.7]} 8. b3 {[%clk
0:02:32]} 8... c5 {[%clk 0:02:54.1]} 9. Bb2 {[%clk 0:02:29.8]} 9... cxd4 {[%clk
0:02:48.1]} 10. Bxd4 {[%clk 0:02:20.8]} 10... Bc5 {[%clk 0:02:26.9]} 11. Bxc5
{[%clk 0:02:13.1]} 11... Nxc5 {[%clk 0:02:28.8]} 12. Ne5 {[%clk 0:02:13.8]}
12... Bf5 {[%clk 0:02:26.9]} 13. cxd5 {[%clk 0:02:12.4]} 13... exd5 {[%clk
0:02:28.8]} 14. Rc1 {[%clk 0:02:03.2]} 14... Rc8 {[%clk 0:02:27.9]} 15. Ndf3
{[%clk 0:01:59]} 15... Re8 {[%clk 0:02:20.6]} 16. Qd4 {[%clk 0:01:49.5]} 16...
Nfe4 {[%clk 0:02:08.9]} 17. Rfd1 {[%clk 0:01:33.7]} 17... Ne6 {[%clk 0:01:54.5]}
18. Qxa7 {[%clk 0:01:22.1]} 18... f6 {[%clk 0:01:13.5]} 19. Rxc8 {[%clk
0:01:11.5]} 19... Qxc8 {[%clk 0:01:13.7]} 20. Nd3 {[%clk 0:01:09.8]} 20... Qc2
{[%clk 0:01:11.2]} 21. Re1 {[%clk 0:00:59.6]} 21... Re7 {[%clk 0:01:07]} 22. Nf4
{[%clk 0:00:32.2]} 22... Nxf4 {[%clk 0:01:07.3]} 23. Qb8+ {[%clk 0:00:33.3]}
23... Kf7 {[%clk 0:01:06.4]} 24. Qxf4 {[%clk 0:00:34.4]} 24... g6 {[%clk
0:01:06.3]} 25. g4 {[%clk 0:00:20.4]} 25... Bd7 {[%clk 0:00:54.2]} 26. g5 {[%clk
0:00:20.5]} 26... f5 {[%clk 0:00:50.6]} 27. Ne5+ {[%clk 0:00:15.6]} 27... Kf8
{[%clk 0:00:50]} 28. Nxd7+ {[%clk 0:00:16.9]} 28... Rxd7 {[%clk 0:00:51.9]} 29.
Bf3 {[%clk 0:00:17.1]} 29... Qc7 {[%clk 0:00:50.3]} 30. Qe3 {[%clk 0:00:16.6]}
30... Qd8 {[%clk 0:00:49.7]} 31. Qd4 {[%clk 0:00:17.5]} 31... Qxg5+ {[%clk
0:00:49.6]} 32. Kh1 {[%clk 0:00:18.9]} 32... Rg7 {[%clk 0:00:46.9]} 33. Rg1
{[%clk 0:00:18.1]} 33... Qh4 {[%clk 0:00:46.7]} 34. Rf1 {[%clk 0:00:17.5]} 34...
Ng3+ {[%clk 0:00:45.4]} 35. fxg3 {[%clk 0:00:15.5]} 35... Qxd4 {[%clk
0:00:46.7]} 36. Kg2 {[%clk 0:00:17.4]} 36... Re7 {[%clk 0:00:47.2]} 37. g4
{[%clk 0:00:19.3]} 37... Kg8 {[%clk 0:00:45.6]} 38. gxf5 {[%clk 0:00:20.4]}
38... gxf5 {[%clk 0:00:47.5]} 39. h3 {[%clk 0:00:21.5]} 39... Rg7+ {[%clk
0:00:48.2]} 40. Kh2 {[%clk 0:00:22.6]} 40... Qf4+ {[%clk 0:00:48.7]} 41. Kh1
{[%clk 0:00:24]} 41... Qg3 {[%clk 0:00:48.3]} 0-1